{"text_format":"3","workbook":"xlsx","n_sheets":11,"sheets":["Meldung","ANLAGE 1 Betriebsstätten","ANLAGE 2 Unternehmensgruppe","ANLAGE 3 Sortiment Produktion","ANLAGE 4 Sortiment Aufbereitung","ANLAGE 5 Subunternehmer","ANLAGE 5.1 Sub-Erklärung","Datenquelle (nicht bearbeiten)","Datenschutzhinweis Berlin","Datenschutzhinweis Hessen","Datenschutzhinweis Bayern"],"not_rendered":{"defined_names":8},"read":"whole","date_system":"1900"}

{"sheet":"Meldung","index":0,"n_rows":77,"n_cols":19,"rows_kept":77,"merged":[[0,0,0,12],[1,0,1,12],[2,0,2,12],[3,0,7,9],[3,10,3,12],[4,10,7,12],[8,0,8,12],[9,1,9,12],[10,6,10,12],[11,1,14,6],[11,7,11,12],[12,7,12,12],[13,7,13,12],[14,7,14,12],[15,0,15,7],[15,8,15,12],[16,0,16,7],[16,8,16,12],[17,0,17,7],[17,8,17,12],[18,0,18,7],[18,8,18,12],[19,0,19,7],[19,8,19,12],[20,0,20,7],[20,8,20,12],[21,0,21,7],[21,8,21,12],[22,0,22,7],[22,8,22,12],[23,0,23,7],[23,8,23,12],[24,1,24,12],[25,2,25,12],[26,1,26,7],[26,9,26,12],[27,1,27,12],[28,2,28,12],[29,0,29,12],[30,0,30,5],[30,6,30,7],[30,8,30,9],[30,10,30,12],[31,1,31,5],[31,8,31,9],[32,1,32,5],[32,8,32,9],[33,1,33,5],[34,2,34,5],[35,2,35,5],[36,2,36,5],[37,1,37,5],[37,8,37,9],[38,1,38,5],[38,8,39,9],[39,1,39,5],[40,1,40,5],[40,8,40,9],[42,1,43,12],[44,1,44,4],[44,5,44,10],[44,11,44,12],[45,0,45,12],[46,1,50,12],[51,0,51,5],[51,7,51,8],[51,9,52,12],[52,0,52,8],[53,0,53,8],[53,9,53,12],[54,0,54,7],[54,8,54,12],[56,0,56,4],[56,5,56,12],[57,0,62,12],[63,0,63,7],[63,8,63,12],[64,0,64,12],[65,0,65,7],[65,8,65,12],[66,0,66,12],[67,0,67,7],[67,8,67,12],[68,0,68,12],[69,1,69,2],[69,4,69,5],[69,6,69,12],[70,0,70,12],[71,0,71,12],[72,0,72,12],[73,0,73,7],[73,8,73,12],[74,0,74,7],[74,8,74,12],[75,0,75,7],[75,8,75,12],[76,0,76,7],[76,8,76,12]]}
["Meldung gemäß Artikel 34 Absatz 1 der Verordnung (EU) 2018/848 (Öko-VO)"]
["des Europäischen Parlaments und des Rates vom 30.05.2018 über die \nökologische/biologische Produktion und die Kennzeichnung von ökologischen/biologischen \nErzeugnissen sowie zur Aufhebung der VO (EG) Nr. 834/2007 "]
["An die zuständige Behörde (Anzeige Adresse nach Auswahl des Bundeslandes unten)"]
[{"$f":"VLOOKUP($I$20,'Datenquelle (nicht bearbeiten)'!A2:C17,3,FALSE)","v":{"$error":"#N/A"}},{"$nulls":9},"Eingangsdatum Behörde"]
[]
[]
[]
[]
["Bitte gelb markierte Felder ausfüllen (Druckbuchstaben) und das jeweils Zutreffende ankreuzen:"]
[null,"Neumeldung"]
[null,"Änderungsmeldung",{"$nulls":3},"Grund / Gründe:"]
[null,"Änderungsmeldung \nwegen \nKontrollstellen-\nwechsel",{"$nulls":5},"bisherige Öko-Kontrollnummer (DE-XY-099-09999-Z):"]
[]
[{"$nulls":7},"Ende Vertrag mit bisheriger Kontrollstelle (TT.MM.JJ):"]
[]
["Name Unternehmer / Unternehmerin / Unternehmergruppe (natürliche bzw. juristische Person)"]
["Rechtsform (z. B. GbR, GmbH, GmbH & Co. KG)"]
["Straße, Hausnummer"]
["PLZ, Ort"]
["Bundesland"]
["E-Mail"]
["Telefonnummer"]
["Ggf. Name des Unternehmens\n(Hofname bei landwirtschaftlichen Betrieben z. B. Sonnenhof)"]
["Verantwortliche Person (Name, Vorname)"]
[null," Es handelt sich um eine Unternehmergruppe nach Artikel 36 der Öko-VO"]
[null,null,"Angabe aller Mitglieder der Unternehmergruppe erforderlich (ANLAGE 2 \"Unternehmergruppe\" ausfüllen!)"]
[null,"Abweichend vom Sitz des Unternehmens gibt es ",{"$nulls":7},"(Anzahl) weitere Betriebsstätten "]
[null,"ohne eigenen Kontrollvertrag"]
["                       Weitere Angaben erforderlich (ANLAGE 1 \"Betriebsstätten\" ausfüllen!)",null,"Weitere Angaben erforderlich (ANLAGE 1 \"Betriebsstätten\" ausfüllen!)"]
["Tätigkeit des Unternehmers / der Unternehmerin / der Unternehmergruppe"]
["Tätigkeit",{"$nulls":5},"auch nicht-ökol.\nTätigkeit",null,"Sortiment/\nErzeugniskategorie ",null,"Beauftragung \nDritter -> ANLAGE 5 „Subunternehmer“ ausfüllen!\n(Tätigkeitsbereich D)"]
[null,"Produktion (landwirtschaftliche Erzeugung) (Tätigkeitsbereich A)",{"$nulls":6},"ANLAGE 3 „Sortiment Produktion“ ausfüllen!"]
[null,"Aufbereitung\n(Tätigkeitsbereich siehe Anlage 4: B bzw. E)",{"$nulls":6},"ANLAGE 4 „Sortiment Aufbereitung“ ausfüllen!"]
[null,"nur Handel (Vertrieb/Inverkehrbringen) (Tätigkeitsbereich H)"]
[null,null,"Großhandel",{"$nulls":15},"\n"]
[null,null,"Einzelhandel"]
[null,null,"Fernabsatz"]
[null,"nur Lagerung (Tätigkeitsbereich H)"]
[null,"Einfuhr aus Drittland und/oder"]
[null,"Erstempfang (Tätigkeitsbereich C)"]
[null,"Ausfuhr in Drittland (Tätigkeitsbereich C)"]
[]
[null,"Die oben genannte/n Tätigkeit/en melde ich / melden wir an und unterstelle/n sie dem Zerti-\nfizierungssystem gemäß Artikel 34 der Öko-VO. "]
[]
[null,"Beauftragte Kontrollstelle",{"$nulls":3},"Kiwa BCS Öko-Garantie GmbH"]
[]
[null,"Ich verpflichte mich / Wir verpflichten uns, die o. g. Tätigkeiten nach Maßgabe der Öko-VO und der zu \nihrer Durchführung erlassenen Rechtsakte durchzuführen und ihre Überprüfung gemäß der Öko-VO \nund der VO (EU) 2017/625 durch die beauftragte Kontrollstelle und/oder durch die zuständige Behörde \nzu dulden und zu unterstützen."]
[]
[]
[]
[]
[]
["Ort, Datum"]
[{"$nulls":7},"s"]
["Unterschrift",{"$nulls":7},"Wiederholung in Druckbuchstaben"]
[]
["Länderspezifischer Datenschutzhinweis:",{"$nulls":4},{"$f":"VLOOKUP($B$70,'Datenquelle (nicht bearbeiten)'!A2:D17,4,FALSE)","v":{"$error":"#N/A"}}]
["Erklärung der Kontrollstelle:\n\nWir bestätigen, dass wir von oben genanntem Unternehmer / genannter Unternehmerin / Unternehmergruppe beauftragt wurden, amtliche Kontrollen gemäß Artikel 37 der Öko-VO durchzuführen, um die Übereinstimmung seiner / ihrer Tätigkeiten mit der Öko-VO zu überprüfen."]
[]
[]
[]
[]
[]
["Datum des Vertragsbeginns: "]
[]
["Die Erstkontrolle findet voraussichtlich statt am: "]
[]
["Bei Änderungsmeldung: Datum der Wirksamkeit: "]
[]
["DE-",{"$f":"IF(I20=0,\"\",I20)","v":""},null,"-001-"]
["zugeteilte Öko-Kontrollnummer (DE-XY-099-09999-Z)"]
["Kiwa BCS Öko-Garantie GmbH, Marientorgraben 3-5, 90402 Nürnberg, DE-ÖKO-001"]
["Name der Kontrollstelle"]
[]
["Datum",{"$nulls":7},"Unterschrift"]
[]
[{"$nulls":8},"Wiederholung in Druckbuchstaben"]

{"sheet":"ANLAGE 1 Betriebsstätten","index":1,"n_rows":40,"n_cols":6,"rows_kept":40,"merged":[[0,0,0,7],[1,0,1,7],[2,0,2,1],[2,2,2,4],[2,5,2,7],[3,0,3,7],[4,0,4,1],[4,2,4,4],[4,5,4,7],[5,0,5,7],[6,0,6,1],[6,2,6,7],[7,0,7,1],[7,2,7,7],[8,0,8,1],[8,2,8,7],[9,0,9,1],[9,2,9,7],[10,0,10,1],[10,2,10,4],[10,6,10,7],[11,0,11,1],[11,2,11,4],[11,6,11,7],[12,0,12,7],[13,0,13,1],[13,2,13,7],[14,0,14,1],[14,2,14,7],[15,0,15,1],[15,2,15,7],[16,0,16,1],[16,2,16,7],[17,0,17,1],[17,2,17,4],[17,6,17,7],[18,0,18,1],[18,2,18,4],[18,6,18,7],[19,0,19,7],[20,0,20,1],[20,2,20,7],[21,0,21,1],[21,2,21,7],[22,0,22,1],[22,2,22,7],[23,0,23,1],[23,2,23,7],[24,0,24,1],[24,2,24,4],[24,6,24,7],[25,0,25,1],[25,2,25,4],[25,6,25,7],[26,0,26,7],[27,0,27,1],[27,2,27,7],[28,0,28,1],[28,2,28,7],[29,0,29,1],[29,2,29,7],[30,0,30,1],[30,2,30,7],[31,0,31,1],[31,2,31,4],[31,6,31,7],[32,0,32,1],[32,2,32,4],[32,6,32,7],[33,0,33,7],[34,0,34,1],[34,2,34,7],[35,0,35,1],[35,2,35,7],[36,0,36,1],[36,2,36,7],[37,0,37,1],[37,2,37,7],[38,0,38,1],[38,2,38,4],[38,6,38,7],[39,0,39,1],[39,2,39,4],[39,6,39,7]]}
["ANLAGE 1 „Betriebsstätten\" wie Zweigniederlassungen, Verkaufsstellen, Aufbereitungseinrichtungen, Lager"]
[]
["zur Meldung vom   ",null,{"$f":"IF(Meldung!$H$52=0,\"\",Meldung!$H$52)","v":""},null,null,"(Datum) "]
[]
["von Unternehmer/in ",null,{"$f":"IF(Meldung!$I$16=0,\"\",CONCATENATE(Meldung!$I$16,\" \",Meldung!$I$17))","v":""},null,null,"(Name)"]
["Falls Sie mehr Felder benötigen, klicken Sie auf den Namen des Tabellenblatts und duplizieren Sie dieses."]
["Bezeichnung"]
["Straße, Hausnummer"]
["PLZ, Ort"]
["Bundesland"]
["Tätigkeit",{"$nulls":4},"Status"]
["Tätigkeit",{"$nulls":4},"Status"]
[]
["Bezeichnung"]
["Straße, Hausnummer"]
["PLZ, Ort"]
["Bundesland"]
["Tätigkeit",{"$nulls":4},"Status"]
["Tätigkeit",{"$nulls":4},"Status"]
[]
["Bezeichnung"]
["Straße, Hausnummer"]
["PLZ, Ort"]
["Bundesland"]
["Tätigkeit",{"$nulls":4},"Status"]
["Tätigkeit",{"$nulls":4},"Status"]
[]
["Bezeichnung"]
["Straße, Hausnummer"]
["PLZ, Ort"]
["Bundesland"]
["Tätigkeit",{"$nulls":4},"Status"]
["Tätigkeit",{"$nulls":4},"Status"]
[]
["Bezeichnung"]
["Straße, Hausnummer"]
["PLZ, Ort"]
["Bundesland"]
["Tätigkeit",{"$nulls":4},"Status"]
["Tätigkeit",{"$nulls":4},"Status"]

{"sheet":"ANLAGE 2 Unternehmensgruppe","index":2,"n_rows":35,"n_cols":11,"rows_kept":35,"merged":[[0,0,0,2],[0,3,0,5],[1,0,1,9],[2,1,2,2],[2,3,2,6],[3,1,3,2],[3,3,3,6],[4,1,4,2],[4,3,4,6],[5,1,5,2],[5,3,5,6],[6,1,6,2],[6,3,6,6],[7,1,7,2],[7,3,7,6],[8,1,8,2],[8,3,8,6],[9,1,9,2],[9,3,9,6],[10,1,10,2],[10,3,10,6],[11,1,11,2],[11,3,11,6],[12,1,12,2],[12,3,12,6],[13,1,13,2],[13,3,13,6],[14,1,14,2],[14,3,14,6],[15,1,15,2],[15,3,15,6],[16,1,16,2],[16,3,16,6],[17,1,17,2],[17,3,17,6],[18,1,18,2],[18,3,18,6],[19,1,19,2],[19,3,19,6],[20,1,20,2],[20,3,20,6],[21,1,21,2],[21,3,21,6],[22,1,22,2],[22,3,22,6],[23,1,23,2],[23,3,23,6],[24,1,24,2],[24,3,24,6],[25,1,25,2],[25,3,25,6],[26,1,26,2],[26,3,26,6],[27,1,27,2],[27,3,27,6],[28,1,28,2],[28,3,28,6],[29,1,29,2],[29,3,29,6],[30,1,30,2],[30,3,30,6],[31,0,31,9],[32,0,32,3],[32,4,34,9],[33,0,33,3],[34,0,34,3]]}
["ANLAGE 2 „Unternehmergruppe“ ",null,null,{"$f":"IF(Meldung!$I$16=0,\"\",CONCATENATE(Meldung!$I$16,\" \",Meldung!$I$17))","v":""},null,null,"(Bezeichnung)  zur Meldung vom ",null,null,{"$f":"IF(Meldung!$H$52=0,\"\",Meldung!$H$52)","v":""},"(Datum)"]
[]
[null,"Name, Vorname des Mitglieds",null,"Straße und Hausnummer",{"$nulls":3},"PLZ","Bundesland","Ort"]
[1]
[2]
[3]
[4]
[5]
[6]
[7]
[8]
[9]
[10]
[11]
[12]
[13]
[14]
[15]
[16]
[17]
[18]
[19]
[20]
[21]
[22]
[23]
[24]
[25]
[26]
[27]
[28]
[]
["Internes Kontrollsystem - IKS-Verwalter/in:"]
[]
["Name, Vorname (Druckbuchstaben)"]

{"sheet":"ANLAGE 3 Sortiment Produktion","index":3,"n_rows":46,"n_cols":9,"rows_kept":46,"merged":[[0,0,0,6],[1,0,1,6],[2,0,2,1],[2,2,2,4],[2,5,2,6],[3,0,3,6],[4,0,4,1],[4,2,4,4],[4,5,4,6],[5,0,5,6],[6,0,6,1],[6,2,6,4],[6,5,6,6],[6,7,6,8],[7,0,17,1],[7,3,7,4],[8,3,8,4],[9,3,9,4],[10,3,10,4],[11,3,11,4],[12,3,12,4],[13,3,13,4],[14,3,14,4],[15,3,15,4],[16,3,16,4],[17,3,17,4],[18,0,31,1],[18,3,18,4],[19,3,19,4],[20,3,20,4],[21,3,21,4],[22,3,22,4],[23,3,23,4],[24,3,24,4],[25,3,25,4],[26,3,26,4],[27,3,27,4],[28,3,28,4],[29,3,29,4],[30,3,30,4],[31,3,31,4],[32,0,38,1],[32,2,38,8],[39,0,43,1],[39,3,39,4],[40,3,40,4],[41,3,41,4],[42,3,42,4],[43,3,43,4],[44,0,44,1],[44,2,44,6],[45,0,45,1],[45,2,45,4],[45,5,45,6],[46,0,46,1],[46,2,46,4],[46,5,46,6],[47,0,47,1],[47,2,47,4],[47,5,47,6],[48,0,48,1],[48,2,48,4],[48,5,48,6],[49,0,49,1],[49,2,49,4],[49,5,49,6],[50,0,50,1],[50,2,50,4],[50,5,50,6],[51,0,51,1],[51,2,51,4],[51,5,51,6],[52,0,52,1],[52,2,52,4],[52,5,52,6],[53,0,53,1],[53,2,53,4],[53,5,53,6],[54,0,54,1],[54,2,54,4],[54,5,54,6]]}
["ANLAGE 3 „Sortiment Produktion“"]
[]
["zur Meldung vom   ",null,{"$f":"IF(Meldung!$H$52=0,\"\",Meldung!$H$52)","v":""},null,null,"(Datum) "]
[]
["von Unternehmer/in ",null,{"$f":"IF(Meldung!$I$16=0,\"\",CONCATENATE(Meldung!$I$16,\" \",Meldung!$I$17))","v":""},null,null,"(Name)"]
[]
["Erzeugniskategorie",null,"ökologisch",null,null,"nicht ökologisch",null,"Produktion während des Umstellungszeitraums"]
["Unverarbeitete Pflanzen und Pflanzenerzeugnisse, einschließlich Pflanzenvermehrungs-material \n\n(Erzeugniskategorie A)",null,null,"Ackerbau",null,null,"Ackerbau",null,"Ackerbau"]
[{"$nulls":3},"Futterbau",null,null,"Futterbau",null,"Futterbau"]
[{"$nulls":3},"Grünland",null,null,"Grünland",null,"Grünland"]
[{"$nulls":3},"Gartenbau Obstbau",null,null,"Gartenbau Obstbau",null,"Gartenbau Obstbau"]
[{"$nulls":3},"Gartenbau Gemüsebau",null,null,"Gartenbau Gemüsebau",null,"Gartenbau Gemüsebau"]
[{"$nulls":3},"Gartenbau Zierpflanzen",null,null,"Gartenbau Zierpflanzen",null,"Gartenbau Zierpflanzen"]
[{"$nulls":3},"Gartenbau Baumschule",null,null,"Gartenbau Baumschule",null,"Gartenbau Baumschule"]
[{"$nulls":3},"Streuobst",null,null,"Streuobst",null,"Streuobst"]
[{"$nulls":3},"Weinbau",null,null,"Weinbau",null,"Weinbau"]
[{"$nulls":3},"Sammlung Wildpflanzen",null,null,"Sammlung Wildpflanzen",null,"Sammlung Wildpflanzen"]
[{"$nulls":3},"Pflanzenvermehrungsmaterial (inkl. Saatgut)",null,null,"Pflanzenvermehrungsmaterial (inkl. Saatgut)",null,"Pflanzenvermehrungsmaterial (inkl. Saatgut)"]
["Tiere und unverarbeitete tierische Erzeugnisse\n\n(Erzeugniskategorie B)",null,"         ","Rinder, Fleisch",null,"         ","Rinder, Fleisch","         ","Rinder, Fleisch"]
[null,null,"         ","Rinder, Milch",null,"         ","Rinder, Milch","         ","Rinder, Milch"]
[null,null,"         ","Rinder, Zucht/Vermehrung",null,"         ","Rinder, Zucht/Vermehrung","         ","Rinder, Zucht/Vermehrung"]
[null,null,"         ","Schweine, Fleisch",null,"         ","Schweine, Fleisch","         ","Schweine, Fleisch"]
[null,null,"         ","Schweine, Zucht/Vermehrung",null,"         ","Schweine, Zucht/Vermehrung","         ","Schweine, Zucht/Vermehrung"]
[null,null,"         ","Geflügel, Eier",null,"         ","Geflügel, Eier","         ","Geflügel, Eier"]
[null,null,"         ","Geflügel, Fleisch",null,"         ","Geflügel, Fleisch","         ","Geflügel, Fleisch"]
[null,null,"         ","Geflügel, Zucht/Vermehrung",null,"         ","Geflügel, Zucht/Vermehrung","         ","Geflügel, Zucht/Vermehrung"]
[null,null,"         ","Schafe",null,"         ","Schafe","         ","Schafe"]
[null,null,"         ","Ziegen",null,"         ","Ziegen","         ","Ziegen"]
[null,null,"         ","Equiden",null,"         ","Equiden","         ","Equiden"]
[null,null,"         ","Geweihträger",null,"         ","Geweihträger","         ","Geweihträger"]
[null,null,"         ","Kaninchen",null,"         ","Kaninchen","         ","Kaninchen"]
[null,null,"         ","Bienen, Imkerei",null,"         ","Bienen, Imkerei","         ","Bienen, Imkerei"]
["Unverarbeitete Aquakulturerzeugnisse und Algen",null,"Kiwa BCS Öko-Garantie GmbH bietet für diese Erzeugniskategorie keine Zertifizierungsdienstleistung an. "]
[]
[]
[]
[]
[]
[]
["In Anhang I der Öko-VO aufgeführte oder nicht durch die vorstehenden Kategorien erfasste Erzeugnisse\n(Erzeugniskategorie G)",{"$nulls":4},"         "]
[null,null,"         ",null,null,"         ",null,"         "]
[null,null,"         ",null,null,"         ",null,"         "]
[null,null,"         ",null,null,"         ",null,"         "]
[null,null,"         ",null,null,"         ",null,"         "]
["InVeKos-Nummer"]
["Bundesland oder anderer Mitgliedsstaat",null,"Landwirtschaftliche Nutzfläche, gesamt (ha)",null,null,"Landwirtschaftliche Nutzfläche, ökologisch bewirtschaftet (ha)"]

{"sheet":"ANLAGE 4 Sortiment Aufbereitung","index":4,"n_rows":40,"n_cols":9,"rows_kept":40,"merged":[[0,0,0,6],[1,0,1,6],[2,0,2,1],[2,2,2,4],[2,5,2,6],[3,0,3,6],[4,0,4,1],[4,2,4,4],[4,5,4,6],[5,0,5,6],[6,0,6,1],[6,2,6,4],[6,5,6,6],[6,7,6,8],[7,0,25,1],[7,3,7,4],[8,3,8,4],[9,3,9,4],[10,3,10,4],[11,3,11,4],[12,3,12,4],[13,3,13,4],[14,3,14,4],[15,3,15,4],[16,3,16,4],[17,3,17,4],[18,3,18,4],[19,3,19,4],[20,3,20,4],[21,3,21,4],[22,3,22,4],[23,3,23,4],[24,3,24,4],[25,3,25,4],[26,0,34,1],[26,3,26,4],[27,3,27,4],[28,3,28,4],[29,3,29,4],[30,3,30,4],[31,3,31,4],[32,3,32,4],[33,3,33,4],[34,3,34,4],[35,0,35,1],[35,3,35,4],[36,0,39,1],[36,3,36,4],[37,3,37,4],[38,3,38,4],[39,3,39,4]]}
["ANLAGE 4 „Sortiment Aufbereitung“"]
[]
["zur Meldung vom   ",null,{"$f":"IF(Meldung!$H$52=0,\"\",Meldung!$H$52)","v":""},null,null,"(Datum) "]
[]
["von Unternehmer/in ",null,{"$f":"IF(Meldung!$I$16=0,\"\",CONCATENATE(Meldung!$I$16,\" \",Meldung!$I$17))","v":""},null,null,"(Name)"]
[]
["Erzeugniskategorie",null,"ökologisch",null,null,"nicht ökologisch",null,"Produktion von Umstellungserzeugnissen"]
["Verarbeitete landwirtschaftliche Erzeugnisse, einschließlich Aquakulturerzeugnisse, die zur Verwendung als Lebensmittel bestimmt sind \n\n(Tätigkeitsbereich B)\n(Erzeugniskategorie D)",null,null,"Getreide und -produkte",null,null,"Getreide und -produkte",null,"Getreide und -produkte"]
[{"$nulls":3},"Brot und Backwaren",null,null,"Brot und Backwaren",null,"Brot und Backwaren"]
[{"$nulls":3},"Ölfrüchte und -produkte",null,null,"Ölfrüchte und -produkte",null,"Ölfrüchte und -produkte"]
[{"$nulls":3},"Gemüse, Kartoffeln \nund -produkte",null,null,"Gemüse, Kartoffeln \nund -produkte",null,"Gemüse, Kartoffeln \nund -produkte"]
[{"$nulls":3},"Obst und -produkte",null,null,"Obst und -produkte",null,"Obst und -produkte"]
[{"$nulls":3},"Gewürze, Heilpflanzen",null,null,"Gewürze, Heilpflanzen",null,"Gewürze, Heilpflanzen"]
[{"$nulls":3},"Milch und -produkte",null,null,"Milch und -produkte",null,"Milch und -produkte"]
[{"$nulls":3},"Fleisch und -produkte",null,null,"Fleisch und -produkte",null,"Fleisch und -produkte"]
[{"$nulls":3},"im Schlachtbetrieb",null,null,"im Schlachtbetrieb",null,"im Schlachtbetrieb"]
[{"$nulls":3},"Eier und -produkte",null,null,"Eier und -produkte",null,"Eier und -produkte"]
[{"$nulls":3},"Aquakulturtiere, Algen \nund -produkte",null,null,"Aquakulturtiere, Algen \nund -produkte",null,"Aquakulturtiere, Algen \nund -produkte"]
[{"$nulls":3},"Imkereiprodukte",null,null,"Imkereiprodukte",null,"Imkereiprodukte"]
[{"$nulls":3},"Getränke",null,null,"Getränke",null,"Getränke"]
[{"$nulls":3},"Nahrungsergänzungsmittel",null,null,"Nahrungsergänzungsmittel",null,"Nahrungsergänzungsmittel"]
[]
[]
[]
[]
[]
["Futtermittel\n\n(Tätigkeitsbereich E)\n(Erzeugniskategorie E)",null,"         ","Mischfutter",null,"         ","Mischfutter","         ","Mischfutter"]
[null,null,"         ","Einzelfuttermittel",null,"         ","Einzelfuttermittel","         ","Einzelfuttermittel"]
[null,null,"         ","Heimtierfutter",null,"         ","Heimtierfutter","         ","Heimtierfutter"]
[null,null,"         ","Nebenerzeugnisse der Lebensmittelherstellung ohne weitere Aufbereitung",null,"         ","Nebenerzeugnisse der Lebensmittelherstellung ohne weitere Aufbereitung","         ","Nebenerzeugnisse der Lebensmittelherstellung ohne weitere Aufbereitung"]
[null,null,"         ",null,null,"         ",null,"         "]
[null,null,"         ",null,null,"         ",null,"         "]
[null,null,"         ",{"$nulls":4},"         "]
[null,null,"         ",null,null,"         ",null,"         "]
[null,null,"         ",null,null,"         ",null,"         "]
["Wein \n\n(Tätigkeitsbereich B)\n(Erzeugniskategorie F)",null,"         ","Wein",null,"         ","Wein","         ","Wein"]
["In Anhang I der Öko-VO aufgeführte oder nicht durch die vorstehenden Kategorien erfasste Erzeugnisse\n(Tätigkeitsbereich B)\n(Erzeugniskategorie G)",null,"         "]
[null,null,"         "]
[null,null,"         "]
[null,null,"         "]

{"sheet":"ANLAGE 5 Subunternehmer","index":5,"n_rows":29,"n_cols":19,"rows_kept":29,"merged":[[0,0,0,1],[0,2,0,3],[0,4,0,5],[0,6,0,12],[0,13,0,17],[1,0,1,14],[2,0,4,0],[2,1,4,1],[2,2,4,2],[2,3,4,3],[2,4,4,4],[2,5,4,5],[2,6,4,6],[2,7,4,7],[2,8,2,14],[2,15,2,18],[3,8,4,8],[3,9,4,9],[3,10,4,10],[3,11,4,11],[3,12,4,12],[3,13,4,13],[3,14,4,14],[3,15,3,17],[29,0,29,18]]}
["ANLAGE 5 „Subunternehmer/in“",null," zur Meldung vom ",null,{"$f":"IF(Meldung!$H$52=0,\"\",Meldung!$H$52)","v":""},null,"(Datum) von Unternehmer",{"$nulls":6},{"$f":"IF(Meldung!$I$16=0,\"\",CONCATENATE(Meldung!$I$16,\" \",Meldung!$I$17))","v":""},{"$nulls":4},"(Name) "]
[]
[null,"Name Subunternehmer/in (einschl. Rechtsform)","Straße, Hausnummer","PLZ","Ort","Bundes-land","Land","Sub neu \nseit letzter Meldung","Vergebene Tätigkeit",{"$nulls":6},"Subunternehmer/in"]
[{"$nulls":8},"Produktion (landwirtschaftl.)","Aufbereitung","Vertrieb / Inverkehrbringen","Lagerung","Einfuhr","Ausfuhr","Beschreibung der Tätigkeit","Ohne eigenen Kontrollvertrag (ich übernehme / wir übernehmen gemäß Artikel 34 Abs. 3 der Öko-VO die Verantwortung für die an Subunternehmer/innen ohne eigenen Kontrollvertrag vergebenen Tätigkeiten)",null,null,"Mit eigenem Kontrollvertrag (eigenes Bio-Zertifikat vorhanden)"]
[{"$nulls":15},"Beauftragung Subunternehmer/in ohne eigenen Kontrollvertrag","Schriftliche Zustimmung gemäß ANLAGE 5.1 notwendig ","Schriftliche Zustimmung gemäß ANLAGE 5.1 liegt unterschrieben dieser Meldung bei","Code-Nr. der Kontrollstelle"]
[1,{"$nulls":15},{"$f":"IF(P6=\"Ja\",\"ANLAGE 5.1 nötig\",\"\")","v":""},{"$f":"IF(P6=\"Ja\",\"Mitsenden\",\"\")","v":""}]
[2,{"$nulls":15},{"$f":"IF(P7=\"Ja\",\"ANLAGE 5.1 nötig\",\"\")","v":""},{"$f":"IF(P7=\"Ja\",\"Mitsenden\",\"\")","v":""}]
[3,{"$nulls":15},"",""]
[4,{"$nulls":15},"",""]
[5,{"$nulls":15},"",""]
[6,{"$nulls":15},"",""]
[7,{"$nulls":15},"",""]
[8,{"$nulls":15},{"$f":"IF(P13=\"Ja\",\"ANLAGE 5.1 nötig\",\"\")","v":""},{"$f":"IF(P13=\"Ja\",\"Mitsenden\",\"\")","v":""}]
[9,{"$nulls":15},"",""]
[10,{"$nulls":15},"",""]
[11,{"$nulls":15},"",""]
[12,{"$nulls":15},"",""]
[13,{"$nulls":15},"",""]
[14,{"$nulls":15},"",""]
[15,{"$nulls":15},"",""]
[16,{"$nulls":15},{"$f":"IF(P21=\"Ja\",\"ANLAGE 5.1 nötig\",\"\")","v":""},{"$f":"IF(P21=\"Ja\",\"Mitsenden\",\"\")","v":""}]
[17,{"$nulls":15},"",""]
[18,{"$nulls":15},"",""]
[19,{"$nulls":15},"",""]
[20,{"$nulls":15},"",""]
[21,{"$nulls":15},"",""]
[22,{"$nulls":15},"",""]
[23,{"$nulls":15},"",""]
[24,{"$nulls":15},"",""]

{"sheet":"ANLAGE 5.1 Sub-Erklärung","index":6,"n_rows":38,"n_cols":3,"rows_kept":38,"merged":[[0,0,0,2],[3,2,5,2],[9,0,9,2],[13,0,18,2],[20,0,20,2],[21,0,21,2],[22,0,22,2],[23,0,23,2],[24,0,24,2],[25,0,25,2],[26,0,26,2],[27,0,27,2],[28,0,28,2],[29,0,29,2],[31,0,31,2]]}
["Schriftliche Zustimmung bei der Vergabe von Tätigkeiten an Subunternehmer/innen im ökologischen Landbau"]
[]
["zwischen Auftraggeber/in ",null,"und Subunternehmer/in"]
[{"$f":"IF(Meldung!I16=0,\"\",CONCATENATE(Meldung!I16,\" \",Meldung!I17))","v":""}]
[{"$f":"IF(Meldung!I16=0,\"\",Meldung!I18)","v":""}]
[{"$f":"IF(Meldung!I17=0,\"\",Meldung!I19)","v":""}]
[]
["(nachstehend „Auftraggeber“)",null,"(nachstehend „Subunternehmer“)"]
[]
["Der Auftraggeber beauftragt den/die Subunternehmer/in die genannten Tätigkeiten laut Anweisungen und unter Beachtung der für das EU-Öko-Kontrollverfahren geltenden Verordnungen [VO (EU) 2018/848 sowie VO (EU) 2017/625] in der jeweils gültigen Fassung durchzuführen."]
[]
["Beschreibung der beauftragten Tätigkeit/en (Wiederholung der Angaben in ANLAGE 5)"]
{"$rows_empty":8}
["Der Auftraggeber unterliegt dem Kontrollverfahren gemäß der VO (EU) 2018/848 über den ökologischen Landbau und den entsprechenden Vorschriften zur Kennzeichnung von landwirtschaftlichen Erzeugnissen sowie Lebens- und Futtermitteln.\n\nIm Rahmen dieses Kontrollverfahrens ist der/die Auftraggeber/in verpflichtet, sicherzustellen, dass die Kontrollstelle auch bei Subunternehmern/innen die Kontrollbefugnisse wahrnehmen kann. Der/die Subunternehmer/in verpflichtet sich daher, sowohl der Kontrollstelle als auch der Kontrollbehörde gemäß VO (EU) 2017/625 Artikel 15  freien Zugang zu allen Einrichtungen, Daten und Dokumenten einschließlich der kaufmännischen Abwicklung und Buchhaltung zu geben und alle erforderlichen und zweckdienlichen Auskünfte zu erteilen. Der/die Subunternehmer/in unterstellt sich hiermit dem Kontrollverfahren gemäß VO (EU) 2018/848 Artikel 2. Der/die Auftraggeber/in verpflichtet sich, die Nutzung dieses Vertrages oder einer entsprechenden Regelung seiner zuständigen Kontrollstelle mitzuteilen. Der Vertrag wird hinfällig sobald der/die Subunternehmer/in keine kontrollpflichtigen Handlungen mehr vornimmt oder sich eigenständig in das Kontrollverfahren begibt."]
["Der/die Subunternehmer/in verpflichtet sich, die für die Durchführung der Kontrolle erforderlichen Unterlagen über einen Zeitraum von mindestens 5 Jahren aufzubewahren."]
["Der/die Subunternehmer/in verpflichtet sich, bei den Tätigkeiten die Vorschriften der VO (EU) 2018/848 über den ökologischen Landbau einzuhalten und die Vorgaben und Weisungen des/der Auftraggebers/in zu beachten und einzuhalten. Insbesondere verpflichtet sich der/die Subunternehmer/in wie folgt:"]
["Die Ware verbleibt vollständig im Eigentum des/der Auftraggebers/in. Ersatzweise wird/werden die Ware/Erzeugnisse vollständig im Auftrag des/der Auftraggebers/in verarbeitet/aufbereitet/gelagert und gehen vollständig an diesen wieder zurück."]
["Der/die Subunternehmer/in verpflichtet sich gemäß VO (EU) 2018/848 Artikel 28 sicherzustellen, jede Vermischung, Verwechslung und/oder Verunreinigung mit anderen Erzeugnissen, insbesondere auch Erzeugnissen aus nicht-ökologischer Produktion zu vermeiden. Im Falle einer Vermischung, Verwechslung und/oder Verunreinigung ist der/die Auftraggeber/in unverzüglich schriftlich darüber zu informieren."]
["Der/die Subunternehmer/in verpflichtet sich die Erzeugnisse vor und nach den Arbeitsgängen in räumlich oder zeitlich getrennten Bereichen zu lagern."]
["Der/die Subunternehmer/in verpflichtet sich, Aufzeichnungen über Ursprung, Art und Menge der dem Betrieb angelieferten Erzeugnisse sowie über Art, Menge und Abnehmer der von ihm ausgelieferten Erzeugnisse zu führen."]
["Der/die Subunternehmer/in verpflichtet sich Maßnahmen zu ergreifen, die es ermöglichen die gelagerten und/oder aufbereiteten Partien/Lose jederzeit eindeutig zu identifizieren."]
["Der/die Subunternehmer/in verpflichtet sich im Fall eines Verstoßes oder von Unregelmäßigkeiten die Durchsetzung der in den Vorschriften für die ökologische/biologische Produktion vorgesehenen Maßnahmen zu akzeptieren."]
["Die Berechnung der Leistungsvergütung erfolgt nach Aufwand auf der Grundlage der jeweils gültigen Kiwa BCS Öko-Garantie GmbH Entgelt- und Gebührenordnung. Die Rechnung ergeht von Kiwa BCS Öko-Garantie GmbH an den/die Auftraggeber/in."]
[]
["Rechtlicher Hinweis: Die schriftliche Zustimmung ist rechtlich unverbindlich. Kiwa BCS Öko-Garantie GmbH bietet keinerlei Gewähr für die rechtliche und vor allem dauerhafte Haltbarkeit dieses Vertrages. Mit Verwendung dieser Zustimmung machen sich die Parteien Inhalt und Verfahren zu Eigen.\nDie Verantwortung über die Verwendung rechtlich verbindlicher vertraglicher Inhalte obliegt den Vertragsparteien. "]
[]
[]
["Ort, Datum","Unterschrift Auftraggeber/in","Wiederholung in Druckbuchstaben"]
[]
[]
["Ort, Datum","Unterschrift Subunternehmer/in","Wiederholung in Druckbuchstaben"]

{"sheet":"Datenquelle (nicht bearbeiten)","index":7,"n_rows":17,"n_cols":7,"rows_kept":17,"hidden":true}
["Bundesland","Bundesland ausgeschrieben","Inhalt","Datenschutzhinweis","Dropdown","Beantwortung","Status"]
["BB","Brandenburg","Ministerium für Landwirtschaft, Umwelt und Klimaschutz (MLUK)\nReferat 33 - Direktzahlungen, Agrarumweltmaßnahmen, ökologischer Landbau\nHenning-von-Tresckow-Straße 2-13\n14467 Potsdam",{"$f":"CONCATENATE(\"Datenschutzhinweis \",B2,\" liegt noch nicht vor\")","v":"Datenschutzhinweis Brandenburg liegt noch nicht vor"},"X","Ja","Nur ökologisch"]
["BE","Berlin","Landesamt für Gesundheit und Soziales (LAGeSo)\nZuständige Behörde für den ökologischen Landbau\n- IV C 4 -\nTurmstraße 21\nHaus A\n10559 Berlin","siehe separates Tabellenblatt \"Datenschutzhinweis Berlin\"",null,"Nein","Ökologisch und Nicht-ökologisch"]
["BW","Baden-Württemberg","Regierungspräsidium Karlsruhe\nAbteilung 3 – Landwirtschaft, Ländlicher Raum, Veterinär- und Lebensmittelwesen\nSachgebiet 33b\n76247 Karlsruhe\n","Informationen zum Schutz personenbezogener Daten, die das Regierungspräsidium Karlsruhe verarbeitet, finden Sie auf unserer Internetseite Datenschutzerklärungen unter [https://rp.baden-wuerttemberg.de/Seiten/Datenschutzerklaerungen.aspx] unter dem Titel „33-27K: Ökologische Produktion (pdf, 138 KB)“. Auf Wunsch werden diese Informationen in Papierform versandt.",null,null,"Ökologisch, In Umstellung und Nicht-ökologisch"]
["BY","Bayern","Landesanstalt für Landwirtschaft (LfL)\nInstitut für Ernährungswirtschaft und Märkte\nArbeitsbereich Vollzug der EG-Öko-Verordnung\nMenzinger Straße 54\n80638 München\n","siehe separates Tabellenblatt \"Datenschutzhinweis Bayern\"",null,null,"Nur Nicht-ökologisch"]
["HB","Bremen","Niedersächsisches Landesamt für Verbraucherschutz und Lebensmittelsicherheit (LAVES)\nDezernat 42 -Ökologischer Landbau-\nPostfach 3949\n26029 Oldenburg",{"$f":"CONCATENATE(\"Datenschutzhinweis \",B6,\" liegt noch nicht vor\")","v":"Datenschutzhinweis Bremen liegt noch nicht vor"}]
["HE","Hessen","Regierungspräsidium Gießen\nAbteilung V\nDezernat 51.2\nSchanzenfeldstraße 8\n35578 Wetzlar","siehe separates Tabellenblatt \"Datenschutzhinweis Hessen\""]
["HH","Hamburg","Freie und Hansestadt Hamburg Behörde für Umwelt, Klima, Energie und Agrarwirtschaft (BUKEA)\nAbt. Agrarwirtschaft Kontrollbehörde ökologischer Landbau und Handelsklassen\nStadthausbrücke 12\n20355 Hamburg","Datenschutzhinweis Hamburg liegt noch nicht vor"]
["MV","Mecklenburg-Vorpommern","Landesamt für Landwirtschaft, Lebensmittelsicherheit und Fischerei (LALLF) Mecklenburg-Vorpommern\nAbteilung für Veterinärdienste und Landwirtschaft\nThierfelderstraße 18\n18059 Rostock\n","Datenschutzhinweis Mecklenburg-Vorpommern liegt noch nicht vor"]
["NI","Niedersachsen","Niedersächsisches Landesamt für Verbraucherschutz und Lebensmittelsicherheit (LAVES)\nDezernat 42 -Ökologischer Landbau-\nPostfach 92 62\n26140 Oldenburg\n","Datenschutzhinweis Niedersachsen liegt noch nicht vor"]
["NW","Nordrhein-Westfalen","Landesamt für Natur, Umwelt und Verbraucherschutz\nFachbereich 82: Agrarmarktüberwachung, \nSG Ökologischer Landbau\nLeibnitzstraße 10\n45659 Recklinghausen\n","Datenschutzhinweis Nordrhein-Westfalen liegt noch nicht vor"]
["RP","Rheinland-Pfalz","Aufsichts- und Dienstleistungsdirektion\nReferat 42 Agraraufsicht und Ernährungssicherstellung\nWilli-Brandt-Platz 3\n54290 Trier\n","Datenschutzhinweis Rheinland-Pfalz liegt noch nicht vor"]
["SH","Schleswig-Holstein","Ministerium für Justiz, Europa, Verbraucherschutz und Gleichstellung des Landes Schleswig-Holstein\n-zuständige Behörde EG-Ökoverordnung-\nReferat II 42\nLorentzendamm 35\n24103 Kiel","Datenschutzhinweis Schleswig-Holstein liegt noch nicht vor"]
["SL","Saarland","Landwirtschaftskammer für das Saarland\nFachbereich C - Ökokontrollbehörde\nIn der Kolling 310\n66450 Bexbach\n","Datenschutzhinweis Saarland liegt noch nicht vor"]
["SN","Sachsen","SÄCHSISCHES LANDESAMT FÜR UMWELT, LANDWIRTSCHAFT UND GEOLOGIE (LfULG)\nReferat 92 – Kontrolldienst Markt und Ökologischer Landbau, EU-Schulprogramm\nPostfach 540 137\n01311 Dresden","Informationsblatt zum Datenschutz siehe: https://www.landwirtschaft.sachsen.de/kontrollen-22971.html"]
["ST","Sachsen-Anhalt","Landesanstalt für Landwirtschaft und Gartenbau (LLG)\nDezernat 14 - Koordinierungsstelle ökologische Produktion\nStrenzfelder Allee 22\n06406 Bernburg\n","Datenschutzhinweis Sachsen-Anhalt liegt noch nicht vor"]
["TH","Thüringen","Thüringer Landesamt für Landwirtschaft und Ländlichen Raum (TLLLR)\nReferat 21\nNaumburger Straße 98\n07743 Jena\n","Datenschutzhinweis Thüringen liegt noch nicht vor"]

{"sheet":"Datenschutzhinweis Berlin","index":8,"n_rows":43,"n_cols":1,"rows_kept":43}
["Länderspezifischer Datenschutzhinweis für das Bundesland BERLIN"]
["\nNachfolgend wird zu Ihrer Information dargestellt, welche Daten erhoben, verarbeitet und gespeichert werden. Die Erhebung, Verarbeitung und Speicherung der Daten dient dem Zweck, im Rahmen des ökorechtlichen Kontrollverfahrens mit den betroffenen Unternehmern*innen und zuständigen Institutionen in Verbindung treten zu können. Die erhobenen Daten werden in elektronischer Form im Landesamt für Gesundheit und Soziales sowie in Aktenform gespeichert. Die Erhebung und Verarbeitung der Daten erfolgt auf der Grundlage des § 67a Sozialgesetzbuch Zehntes Buch (SGB X). Die Speicherung beginnt mit dem Eingang der Meldung über die Teilnahme am ökorechtlichen Kontrollverfahren und endet in Anwendung von § 61 GGO 1 10 Jahre nach Betriebseinstellung bzw. nach dem Zeitpunkt, zu dem gemeldete Unternehmer*innen nicht mehr dem Öko-Kontrollverfahren untersteht und keine Rechtsverfahren mehr anhängig sind. Für Vorgänge der sog. Marktkontrolle, bei denen die Kontrollpflicht von Unternehmern*innen überprüft wurde, beginnt die Speicherung mit der Aufnahme von Ermittlungen und endet 5 Jahre nach Abschluss eines Ermittlungsvorgangs. Für die Erhebung, Verarbeitung und Speicherung kommen Daten wie Name, Geschlecht, Titel, ggf. Beruf, ggf. berufliche Qualifikation, private und/oder dienstliche Anschrift und Kontaktdaten sowie Verlauf der Kommunikation in Betracht."]
["Die Datenspeicherung erfolgt aufgrund der Anwendung folgender Rechtsnormen:"]
["•  Gesetz zum Schutz personenbezogener Daten in der Berliner Verwaltung (Bin DSG, § 3 + 15)"]
["•  ÖLG (§§ 2, 81 9, 12, 13 u.a.) mit den dazugehörigen Verordnungen und Gesetzen (ÖkoKennzG, ÖkoKennzV, ÖLGKontrollStZulV)"]
["•  EU-VO [(EG)Nr. 834/2007, Nr. 889/2008 und 1235/12008; (EU)2017/625 und 2020/466 sowie ab dem 01.01.2022 (EU) 2018/848]"]
["Zugriffsberechtigte Personen oder Personengruppen sind alle Mitarbeiter*innen der Fachgruppe LAGeSo IV C 4-Öko-Kontrolle, sowie der zuständige Referatsleiter. Zu den Empfängern, gegenüber denen die Daten offengelegt worden sind oder noch offengelegt werden (einschließlich Empfänger in Drittländern oder internationalen Organisationen) gehören:"]
["Eher regelmäßig:"]
["•  Bundesanstalt für Landwirtschaft und Ernährung (aufgrund ÖLG § 2 Abs. 2)"]
["•  Zuständige Behörden für den ökologischen Landbau in anderen Bundesländern der Bundesrepublik Deutschland (aufgrund ÖLG § 9 Abs. 1)"]
["•  Zuständige Behörden und ggf. auch privatrechtlicher Organisationen (z.B. Ökokontrollstellen), soweit diese durch Mitgliedstaaten der Europäischen Union dazu ermächtigt wurden [aufgrund ÖLG § 9 und Art. 105 Abs. 1 VO (EU) 2017/625)]"]
["Eher anlassbezogen:"]
["•  Bundesministerium für Ernährung und Landwirtschaft (aufgrund ÖLG § 9 Abs. 2)"]
["•  Senatsverwaltung für Justiz, Verbraucherschutz und Antidiskriminierung (Fachaufsicht) sowie Interne Revision (ZRev), Haus-, Abteilungs- und Referatsleitung (Präs, IV AbtL +Vertretung, IV C +Vertretung) des LAGeSo (aufgrund§ 15 Abs. 1 Nr. 5 BlnDSG)"]
["•  Zollbehörden (aufgrund ÖLG § 71 Nr. 2 und§ 15 Abs. 1 Nr. 2 BlnDSG)"]
["•  LAGeSo Fachgruppe Veterinär- und Lebensmittelwesen sowie Berliner Bezirksämter (Veterinär- und Lebensmittelaufsichten) aufgrund ZustKat. Berlin i.V.m. VO (EG) 852/2004, VO (EG) 853/2004, VO (EG) 854/2004 insoweit die Gewissheit besteht, dass hier gegen eine der vorgenannten Verordnungen verstoßen wird oder Gefahr im Verzug ist und die Datenübermittlung sich im Rahmen der vorgenannten Gesetze bewegt d.h. die Behörde auch zur Speicherung dieser Daten berechtigt und verpflichtet wäre (aufgrund§ 15 Abs. 1 Nr. 2 BlnDSG)."]
["•  Anerkannte Drittlands-Kontrollbehörden und Drittlands-Kontrollstellen (aufgrund § 11 ÖLG i. V. m. Artikel 32 Abs. 2 Satz 7 und Artikel 33 Abs. 3 Satz 8 der Verordnung (EG) Nr. 834/2007 bzw. der ab 01.01.2022 geltenden Nachfolge-verordnung (EU) 2018/848 sowie insbesondere auch aufgrund von Art. 107 VO (EU) 2017/625)."]
["•   Zuständige Behörden und ggf. auch privatrechtlicher Organisationen, soweit diese durch Mitgliedstaaten der Europäischen Union dazu ermächtigt wurden (aufgrund ÖLG § 9 und Art. 102-106 VO (EU) 2017/625)"]
["•   Anerkannte Drittlands-Kontrollbehörden und Drittlands-Kontrollstellen (Gesetze siehe Punkt 9) aufgeführt in Anhang III der VO (EG) Nr. 1235/2008 und Anhang IV der VO (EG) Nr. 1235/2008"]
["•  Strafverfolgungsbehörden (Polizei, Staatsanwaltschaft) (aufgrund§ 15 Abs. 1 Nr. 3 BlnDSG)"]
["•  Verwaltungsgerichtsbarkeit (im Zusammenhang mit§ 86 Abs. 4 und 5, §99 Abs. 1 VWGO)"]
["In Ausnahmefällen - nach eingehender Abwägung:"]
["Die Öffentlichkeit aufgrund von Art. 8 Absatz 5 VO (EU) 2017/625."]
["Folgende Kontaktmöglichkeiten stehen Ihnen zur Verfügung:"]
["Zuständige Behörde für den ökologischen Landbau Berlin (Öko-Kontrolle)"]
["•  Dienstsitz: Landesamt für Gesundheit und Soziales Berlin - Zuständige Behörde für den ökologischen Landbau (Öko-Kontrolle, IV C 4) -, Turmstr. 21, Haus A, 10559 Berlin"]
["•  Telefon: 030 90229-2431 / E-Mail: oekokontrolle@lageso.berlin.de"]
["Datenschutzbeauftragte des LAGeSo:"]
["•  Dienstsitz: Landesamt für Gesundheit und Soziales, Datenschutzbeauftragte ZS L DSB, Frau Ave, Sächsische Str. 28, 10707 Berlin"]
["•  Telefon: 030 90229-1209 / Telefax: 030 90229-1095 / E-Mail: sabine.ave@lageso.berlin.de"]
["Berliner Beauftragte für Datenschutz und Informationsfreiheit"]
["•  Postanschrift: Friedrichstr. 219, 10969 Berlin"]
["•  Telefon: 030 138890-0 / Telefax: 030 215550 / E-Mail: mailbox@datenschutz-berlin.de"]
["Sie haben folgende Rechte:"]
["•  Recht auf Auskunft über die zu Ihrer Person verarbeiteten Daten"]
["•  Recht auf Löschung nicht (mehr) benötigter Daten zu Ihrer Person"]
["•  Recht auf jederzeitigen Widerspruch gegen die Datenverarbeitung"]
["•  Recht jederzeit die Behörde der/des Berliner Beauftragten für Datenschutz und Informationsfreiheit anzurufen"]
["• Recht auf Berichtigung unrichtiger Daten zu Ihrer Person"]
["• Recht auf Einschränkung der Verarbeitung der Daten zu Ihrer Person"]
["• Recht auf Ausschluss einer ausschließlich automatisierten Entscheidung"]
[]
["Diese Informationen sind für Ihre Unterlagen bestimmt."]

{"sheet":"Datenschutzhinweis Hessen","index":9,"n_rows":1,"n_cols":1,"rows_kept":1,"merged":[[0,0,1,0]]}
["Länderspezifischer Datenschutzhinweis für das Bundesland  HESSEN\n\nInformationsblatt gemäß Artikel 13 DSGVO\nSie erhalten diese Information nach Artikel 13 DS-GVO, da Sie über Ihre Kontrollstelle dem Regierungspräsidium Gießen im Rahmen eines Verwaltungsverfahrens personenbezogene Daten zu Ihrer Person mitgeteilt haben.\n\nVerantwortlichkeit\nVerantwortlicher der Verarbeitung Ihrer personenbezogenen Daten ist das Regierungspräsidium Gießen. Sie erreichen das Regierungspräsidium Gießen wie folgt: \nLandgraf-Philipp-Str. 1-7, 35390 Gießen; E-Mail: poststelle@rpgi.hessen.de\nTel.: 0641/303-0\n\nUmgang mit Ihren Daten\nDie Berechtigung zur Verwendung und der Umfang der erhobenen Daten ergeben sich aus Art. 6 Abs. 1 Satz 1 lit. c) und lit. e) DSGVO in Verbindung mit Art. 6 Abs. 2 und 3 DSGVO in Verbindung mit der Kontrollverordnung 2017/625 und §§ 3 Abs. 1, 23 HDSIG.\nDie Datenverarbeitung erfolgt zur Erfüllung der gesetzlich übertragenen Aufgaben und ist für die Durchführung der Öko-Kontrolle und die Zertifizierung nach der Verordnung (EU) 2018/848 erforderlich. Die Verarbeitung Ihrer personenbezogenen Daten erfolgt nicht auf Grundlage einer automatisierten Entscheidungsfindung oder Profiling.\n\nEmpfänger\nSoweit dies zur Bearbeitung des Verfahrens erforderlich ist, werden ggf. Ihre personenbezogenen Daten an Dritte übermittelt. Hierzu gehört insbesondere die Weitergabe an beteiligte öffentliche Stellen in Hessen wie z. B. die Lebensmittelüberwachung. Die übermittelten Daten dürfen von den vorgenannten Stellen ausschließlich im Rahmen der gesetzlichen Aufgabenerfüllung verwendet werden.\n\nSpeicherdauer und -fristen\nIhre Daten werden für den Bereich Öko-Kontrolle so lange gespeichert und verarbeitet, wie dies zur Überprüfung der oben genannten Sachverhalte erforderlich ist. Sofern keine spezialgesetzlichen Vorgaben bestehen, erfolgt eine Orientierung an den im Erlass zur Aktenführung in den Dienststellen des Landes Hessen genannten Aufbewahrungsfristen. \n\nIhre Rechte\nEs besteht ein Recht des Betroffenen auf Auskunft seitens des Verantwortlichen über die betreffenden personenbezogenen Daten, auf Berichtigung, Löschung oder auf Einschränkung der Verarbeitung sowie ein Widerspruchsrecht gegen die Verarbeitung. Sie haben darüber hinaus das Recht auf Beschwerde beim Hessischen Beauftragte für Datenschutz und Informationsfreiheit, Postfach 3163, 65021 Wiesbaden. Darüber hinaus können Sie sich mit einer Beschwerde an den/die behördliche Datenschutzbeauftragte wenden, wenn Sie der Auffassung sind, dass datenschutzrechtliche Vorschriften bei der Verarbeitung Ihrer Daten nicht beachtet worden sind.\n\nDatenschutzbeauftragte/r\nDie/den Datenschutzbeauftragte/n des Regierungspräsidiums Gießen erreichen Sie unter der oben genannten Anschrift, zu Hd. der/s Datenschutzbeauftragte/n des Regierungspräsidiums Gießen oder per E-Mail: dsb@rpgi.hessen.de\n"]

{"sheet":"Datenschutzhinweis Bayern","index":10,"n_rows":1,"n_cols":1,"rows_kept":1,"merged":[[0,0,1,0]]}
["Länderspezifischer Datenschutzhinweis für das Bundesland BAYERN\n\nDatenschutzhinweise nach Art. 13 Datenschutzgrundverordnung (DSGVO) \nim Zusammenhang mit der Meldung gemäß Art. 34 Abs. 1 der Verordnung (EU) 2018/848 des Europäischen Parlaments und des Rates vom 30.05.2018 über die ökologische/biologische Produktion und die Kennzeichnung von ökologi-schen/biologischen Erzeugnissen sowie zur Aufhebung der VO (EG) Nr. 834/2007\n\nAllgemeine Hinweise zum Datenschutz finden Sie hier: www.lfl.bayern.de/datenschutz\n\n1. Verarbeitungstätigkeit, Zweck und Rechtsgrundlage der Datenverarbeitung\nDiese Informationen beziehen sich auf die Verarbeitung personenbezogener Daten im Zu-sammenhang mit Meldungen gemäß Art. 34 Abs. 1 der Verordnung (EU) 2018/848 des Euro-päischen Parlaments und des Rates vom 30.05.2018 über die ökologische/biologische Pro-duktion und die Kennzeichnung von ökologischen/biologischen Erzeugnissen sowie zur Auf-hebung der VO (EG) Nr. 834/2007, für die die Bayerische Landesanstalt für Landwirtschaft (LfL) gemäß Art. 4 Land- und forstwirtschaftlichem Zuständigkeits- und Vollzugsgesetz (Zu-VLFG), zuständig ist. Voraussetzung für den sachlichen Anwendungsbereich der Daten-schutzgrundverordnung ist das Vorliegen von personenbezogenen Daten gemäß Art. 4 Nr. 1 DSGVO. \n\nIhre personenbezogenen Daten werden verarbeitet, soweit dies zur Erfüllung der o. g. gesetz-lichen Aufgaben der LfL erforderlich ist. Rechtsgrundlage für die Verarbeitung der Pflichtan-gaben ist Art. 6 Abs. 1 Buchst. c) und e), Abs. 2 und 3 DSGVO i. V. m. Art. 4 Abs. 1 Bayeri-sches Datenschutzgesetz (BayDSG) i. V. m. Art. 34 Abs. 1 VO (EU) 2018/848. Sofern freiwil-lige Angaben getätigt werden, ist Art. 6 Abs. 1 Buchst. a) DSGVO die zugehörige Rechts-grundlage.\n\n2. Empfänger der personenbezogenen Daten\nIhre personenbezogenen Daten werden im Rahmen der gesetzlichen Aufgabenerfüllung an die zuständigen Stellen innerhalb der LfL weitergegeben.\nAn Stellen außerhalb der LfL übermitteln wir Ihre personenbezogenen Daten nur bei Vorliegen Ihrer ausdrücklichen Einwilligung oder im Einzelfall, soweit dies für unsere oder deren Aufga-benerfüllung erforderlich ist, z. B. Bundesministerium für Landwirtschaft und Ernährung, Bay-erisches Staatsministerium für Ernährung, Landwirtschaft und Forsten, Bayerisches Landes-amt für Gesundheit und Lebensmittelsicherheit, Lebensmittelüberwachungsbehörden in Bay-ern, Staatsanwaltschaft bei Verdacht auf Vorliegen einer Straftat, Gerichte. \n\n3. Dauer der Speicherung der personenbezogenen Daten\nIhre Daten werden nach der Erhebung bei der LfL so lange gespeichert, wie dies für die Auf-gabenerfüllung unter Beachtung der gesetzlichen Aufbewahrungsfristen und zur Erfüllung von Dokumentationspflichten notwendig ist. \n\n4. Pflicht zur Bereitstellung der Daten\nSie sind dazu verpflichtet, Ihre Daten anzugeben. Diese Verpflichtung ergibt sich aus Art. 6 Abs. 1 Buchst. c) und Abs. 3 S. 1 Buchst. b) DSGVO i. V. m Art. 34 Abs. 1 VO (EU) 2018/848. Wenn Sie die erforderlichen Daten nicht angeben, kann Ihre Meldung von der zu-ständigen Behörde nicht bearbeitet werden."]